bitfinex/quotes_SOLUSD_20250805
["timestamp","ask_amount","ask_price","bid_price","bid_amount"]
[1754361788814,0.03,168.79,168.78,52.15709898]
[1754361790511,0.03,168.79,168.78,58.08197159]
[1754361791250,0.03,168.79,168.78,32.08197159]
[1754361793211,0.03,168.8,168.78,32.08197159]
[1754361793412,0.03,168.8,168.79,83.44075617]
[1754361793737,0.03,168.8,168.79,170.88075617]
[1754361794244,18.8644102,168.84,168.81,26.0]
[1754361794540,19.5644102,168.84,168.81,72.25811729]
[1754361796825,19.5644102,168.84,168.81,78.18193696]
[1754361797343,0.7,168.83,168.81,78.18193696]
[1754361797645,0.73,168.82,168.81,36.98193696]
[1754361798330,0.73,168.82,168.81,52.08815253]
[1754361798820,0.73,168.82,168.81,47.03003524]
[1754361799143,0.73,168.82,168.81,26.08815253]
[1754361799545,0.73,168.82,168.79,87.44]
[1754361799715,0.73,168.82,168.81,5.05811729]
[1754361803216,0.73,168.82,168.79,87.44]
[1754361803423,0.73,168.82,168.81,5.05811729]
[1754361804025,41.93,168.82,168.78,5.05811729]
[1754361804318,0.7,168.81,168.78,5.05811729]
[1754361810264,0.7,168.81,168.76,21.03179035]
[1754361810443,0.7,168.81,168.76,5.92557478]
[1754361810643,0.7,168.81,168.78,5.05811729]
[1754361811744,0.7,168.81,168.77,5.05811729]
[1754361812966,0.7,168.81,168.77,10.98332693]
[1754361814469,0.7,168.81,168.77,98.48332693]
[1754361817048,0.68,168.8,168.77,98.48332693]
[1754361817771,46.28811729,168.82,168.77,98.48332693]
[1754361817941,41.91,168.82,168.78,5.25811729]
[1754361818682,41.91,168.82,168.78,3.43720603]
[1754361819458,0.68,168.81,168.78,3.23720603]
[1754361820479,0.68,168.81,168.78,96.66189173]
[1754361820657,41.23,168.82,168.79,3.23720603]
[1754361820862,41.23,168.82,168.8,3.23720603]
[1754361821677,41.23,168.82,168.8,9.16121931]
[1754361821889,0.03,168.82,168.81,3.23720603]
[1754361822057,0.03,168.82,168.81,18.5434216]
[1754361823558,0.03,168.82,168.81,106.0434216]
[1754361823752,0.03,168.82,168.81,111.96724127]
[1754361824762,0.03,168.82,168.81,113.78467797]
[1754361824964,0.03,168.82,168.81,113.58467797]
[1754361830580,18.8944102,168.84,168.83,26.0]
[1754361830782,18.8944102,168.84,168.83,159.73464273]
[1754361830953,18.8944102,168.84,168.83,159.93464273]
[1754361831160,18.8944102,168.84,168.83,165.85776065]
[1754361834690,18.8944102,168.84,168.83,160.60311792]
[1754361834889,18.8944102,168.84,168.83,165.65776065]
[1754361846797,18.8944102,168.84,168.83,163.83692997]
[1754361849690,18.8944102,168.84,168.83,179.08530711]
[1754361850008,18.8944102,168.84,168.83,179.28530711]
[1754361850417,0.03,168.84,168.83,179.28530711]
[1754361852212,0.03,168.84,168.83,175.85149506]
[1754361852390,0.03,168.84,168.83,179.08530711]
[1754361852990,0.69,168.86,168.84,87.47]
[1754361853229,0.69,168.86,168.85,44.41381205]
[1754361855200,0.69,168.86,168.85,50.33622839]
[1754361857817,0.69,168.86,168.85,9.15622839]
[1754361858914,0.69,168.86,168.85,105.81002762]
[1754361859624,0.69,168.86,168.85,111.73244396]
[1754361861920,0.69,168.86,168.85,87.47]
[1754361862227,0.69,168.86,168.85,90.70381205]
[1754361864014,0.69,168.86,168.85,96.62622839]
[1754361864617,0.69,168.86,168.85,90.70381205]
[1754361865012,0.69,168.86,168.85,87.47]
[1754361865211,0.69,168.86,168.85,90.70381205]
[1754361865518,0.69,168.86,168.85,96.62622839]
[1754361866225,0.69,168.86,168.85,90.70381205]
[1754361867235,0.69,168.86,168.85,87.47]
[1754361867407,0.69,168.86,168.85,90.70381205]
[1754361870605,0.69,168.86,168.85,3.23381205]
[1754361873238,0.69,168.86,168.84,3.29381205]
[1754361874232,0.69,168.86,168.84,0.06]
[1754361874623,0.69,168.86,168.84,3.29381205]
[1754361880340,0.03,168.86,168.84,5.98258431]
[1754361880516,0.03,168.86,168.85,3.23381205]
[1754361880724,0.69,168.86,168.85,3.23381205]
[1754361881644,0.69,168.86,168.85,9.15622839]
[1754361884845,0.03,168.86,168.85,9.15622839]
[1754361885047,0.03,168.86,168.85,24.46244396]
[1754361885942,0.03,168.86,168.85,24.26244396]
[1754361888531,0.03,168.86,168.85,111.76244396]
[1754361894457,0.03,168.86,168.85,108.52863191]
[1754361894657,0.03,168.86,168.85,111.76244396]
[1754361895432,0.69,168.86,168.85,111.76244396]
[1754361898133,0.69,168.86,168.85,108.52863191]
[1754361898339,0.69,168.86,168.85,111.76244396]
[1754361898547,0.69,168.86,168.85,108.52863191]
[1754361898747,0.69,168.86,168.85,111.76244396]
[1754361900160,0.69,168.86,168.85,108.52863191]
[1754361900357,0.69,168.86,168.84,0.06]
[1754361901255,3.23381205,168.85,168.84,0.06]
[1754361901444,5.92241634,168.85,168.84,0.06]
[1754361901771,0.68,168.85,168.84,0.06]
[1754361901935,41.82,168.85,168.84,0.06]
[1754361903269,50.97622839,168.85,168.84,0.06]
[1754361906774,47.74241634,168.85,168.84,0.06]
[1754361906949,50.97622839,168.85,168.84,0.06]
[1754361908668,51.00622839,168.85,168.84,0.06]
[1754361909978,45.08381205,168.85,168.84,0.06]
[1754361910272,0.03,168.85,168.84,0.06]
[1754361913176,0.03,168.85,168.84,3.49381205]
[1754361913551,0.03,168.85,168.84,90.99381205]
[1754361913753,0.03,168.85,168.84,106.10002762]
[1754361913944,0.03,168.85,168.84,112.02279473]
[1754361917972,0.03,168.85,168.84,112.1649563]
[1754361918353,0.03,168.85,168.84,153.3049563]
[1754361923180,0.03,168.85,168.84,150.07114425]
[1754361923392,0.03,168.85,168.84,153.1049563]
[1754361923891,0.71,168.85,168.84,111.82279473]
[1754361925790,0.03,168.85,168.84,111.82279473]
[1754361926987,0.03,168.85,168.84,24.32279473]
[1754361927165,0.71,168.85,168.84,24.32279473]
[1754361927669,0.71,168.85,168.84,21.08898268]
[1754361927865,0.71,168.85,168.84,15.16621557]
[1754361928188,0.71,168.85,168.84,0.06]
[1754361932061,5.76574993,168.85,168.84,0.06]
[1754361932284,0.71,168.85,168.84,0.06]
[1754361932486,5.76574993,168.85,168.84,0.06]
[1754361932987,0.71,168.85,168.84,0.06]
[1754361935093,5.76574993,168.85,168.84,0.06]
[1754361935705,0.71,168.85,168.84,0.06]
[1754361938890,5.76574993,168.85,168.84,0.06]
[1754361939079,46.90574993,168.85,168.84,0.06]
[1754361942788,41.85,168.85,168.84,0.06]
[1754361943102,46.90574993,168.85,168.84,0.06]
[1754361944991,52.82816627,168.85,168.84,0.06]
[1754361946871,55.20085727,168.85,168.84,0.06]
[1754361952784,53.38223316,168.85,168.84,0.06]
[1754361961544,2.402691,168.85,168.84,0.06]
[1754361961829,3.26712582,168.85,168.84,0.06]
[1754361962012,44.40712582,168.85,168.84,0.06]
[1754361962608,41.17,168.85,168.84,0.06]
[1754361962934,41.17,168.85,168.84,0.26]
[1754361963704,41.17,168.85,168.84,0.06]
[1754361963904,45.05712582,168.85,168.84,0.06]
[1754361965226,50.97954216,168.85,168.84,0.06]
[1754361965744,45.05712582,168.85,168.84,0.06]
[1754361966661,46.87731972,168.85,168.84,0.06]
[1754361968763,0.03,168.85,168.84,0.06]
[1754361968945,41.17,168.85,168.84,0.06]
[1754361971259,41.17,168.85,168.84,0.26]
[1754361971553,41.17,168.85,168.84,0.06]
[1754361972265,41.17,168.85,168.84,0.26]
[1754361972666,41.17,168.85,168.84,0.06]
[1754361974370,41.17,168.85,168.84,0.26]
[1754361974547,0.03,168.85,168.84,5.31731972]
[1754361974761,0.03,168.85,168.84,0.06]
[1754361974974,0.03,168.85,168.84,0.26]
[1754361975981,0.03,168.85,168.84,0.06]
[1754361976660,5.73731972,168.85,168.84,0.06]
[1754361978554,11.65973606,168.85,168.84,0.06]
[1754361984157,15.65181757,168.85,168.84,0.06]
[1754361984577,42.71884677,168.85,168.84,0.06]
[1754361984967,45.09153777,168.85,168.84,0.06]
[1754361990794,42.71884677,168.85,168.84,0.06]
[1754361992697,37.66152705,168.85,168.84,0.06]
[1754361992869,38.07676526,168.85,168.84,0.06]
[1754361993300,42.73788634,168.85,168.84,0.06]
[1754361993487,38.74676526,168.85,168.84,0.06]
[1754361993990,42.7378188,168.85,168.84,0.06]
[1754361994392,38.74676526,168.85,168.84,0.06]
[1754361994777,42.73791569,168.85,168.84,0.06]
[1754361995912,38.74676526,168.85,168.84,0.06]
[1754361996803,38.07676526,168.85,168.84,0.06]
[1754361997790,38.74676526,168.85,168.84,0.06]
[1754361998879,42.73827487,168.85,168.84,0.06]
[1754362003609,42.88043644,168.85,168.84,0.06]
[1754362004109,45.25326744,168.85,168.84,0.06]
[1754362008289,71.25326744,168.85,168.84,0.06]
[1754362008689,26.0,168.83,168.82,0.06]
[1754362008912,0.14216157,168.82,168.8,0.06]
[1754362009109,51.39680101,168.81,168.8,0.06]
[1754362009416,64.35566529,168.81,168.8,0.06]
[1754362010188,59.29834557,168.81,168.8,0.06]
[1754362011290,55.30683596,168.81,168.8,0.06]
[1754362013812,54.63683596,168.81,168.8,0.06]
[1754362014016,55.30683596,168.81,168.8,0.06]
[1754362015516,60.36415568,168.81,168.8,0.06]
[1754362016720,66.44720629,168.81,168.8,0.06]
[1754362021224,70.43647532,168.81,168.8,0.06]
[1754362023312,68.06294032,168.81,168.8,0.06]
[1754362024020,51.11551925,168.81,168.8,0.06]
[1754362025412,55.10447441,168.81,168.8,0.06]
[1754362026619,68.06262645,168.81,168.8,0.06]
[1754362029017,70.43616245,168.81,168.8,0.06]
[1754362029203,68.06262645,168.81,168.8,0.06]
[1754362029526,55.10447441,168.81,168.8,0.06]
[1754362030327,7.22849317,168.81,168.8,0.06]
[1754362030513,3.23953801,168.81,168.8,0.26]
[1754362030708,44.37953801,168.81,168.8,0.26]
[1754362035337,44.37953801,168.81,168.8,0.06]
[1754362035711,41.14,168.81,168.8,0.06]
[1754362035932,44.37953801,168.81,168.8,0.06]
[1754362038414,45.05953801,168.81,168.8,0.06]
[1754362040359,50.98335768,168.81,168.8,0.06]
[1754362040518,68.07275747,168.81,168.8,0.06]
[1754362041125,7.90862419,168.81,168.8,0.06]
[1754362041346,0.03,168.82,168.8,0.06]
[1754362041653,44.37953801,168.81,168.8,0.06]
[1754362043946,44.37953801,168.81,168.8,0.26]
[1754362044450,44.37953801,168.81,168.8,0.06]
[1754362044749,46.198956,168.81,168.8,0.06]
[1754362046643,41.14,168.81,168.8,0.06]
[1754362046948,41.14,168.81,168.8,0.26]
[1754362047151,41.14,168.81,168.8,6.18417061]
[1754362047652,41.17,168.82,168.8,6.18417061]
[1754362047824,41.17,168.82,168.8,5.98417061]
[1754362049556,41.17,168.82,168.8,0.06]
[1754362049958,41.88,168.82,168.8,0.06]
[1754362050263,46.938956,168.82,168.8,0.06]
[1754362053056,41.88,168.82,168.8,0.06]
[1754362056139,41.17,168.82,168.8,0.06]
[1754362057265,0.03,168.82,168.81,5.258956]
[1754362057570,0.03,168.82,168.81,20.36517157]
[1754362059245,0.03,168.82,168.81,26.28899124]
[1754362067954,0.03,168.82,168.81,21.23003524]
[1754362068277,0.03,168.82,168.81,26.28899124]
[1754362070255,0.03,168.82,168.81,21.03003524]
[1754362070461,0.03,168.82,168.81,26.08899124]
[1754362070773,0.03,168.82,168.81,24.26521405]
[1754362071978,0.74,168.82,168.81,24.26521405]
[1754362072675,0.03,168.82,168.81,24.26521405]
[1754362075165,0.74,168.82,168.81,24.26521405]
[1754362078497,0.74,168.82,168.81,21.03003524]
[1754362078684,0.74,168.82,168.81,24.26521405]
[1754362080760,0.03,168.82,168.81,24.26521405]
[1754362082598,0.03,168.82,168.81,24.32521405]
[1754362083808,0.69,168.82,168.81,21.09003524]
[1754362083974,0.69,168.82,168.81,24.32521405]
[1754362084707,0.03,168.82,168.81,24.32521405]
[1754362088208,0.03,168.82,168.81,24.52521405]
[1754362088407,0.03,168.82,168.81,24.32521405]
[1754362091088,0.03,168.84,168.82,41.10621557]
[1754362091312,0.03,168.85,168.83,59.48139438]
[1754362091594,0.03,168.87,168.86,41.24837714]
[1754362091905,0.03,168.87,168.86,44.48355595]
[1754362093002,0.03,168.87,168.86,50.40562156]
[1754362093409,0.69,168.87,168.86,47.02828118]
[1754362093695,0.69,168.87,168.86,50.26345999]
[1754362097104,0.69,168.87,168.86,26.0]
[1754362097607,0.69,168.87,168.86,29.23517881]
[1754362097897,0.69,168.87,168.86,35.15724442]
[1754362099479,0.03,168.87,168.86,50.26345999]
[1754362101032,0.03,168.87,168.86,47.02828118]
[1754362101200,0.69,168.87,168.86,50.26345999]
[1754362101990,0.03,168.87,168.86,50.26345999]
[1754362104711,0.03,168.87,168.86,50.32345999]
[1754362108623,0.71,168.87,168.86,50.32345999]
[1754362108812,0.71,168.87,168.86,47.08828118]
[1754362109127,0.71,168.87,168.86,50.32345999]
[1754362109505,0.71,168.87,168.86,21.08828118]
[1754362110227,0.71,168.87,168.86,24.32345999]
[1754362110907,0.03,168.87,168.86,65.46345999]
[1754362112817,0.71,168.87,168.86,65.46345999]
[1754362113829,0.71,168.87,168.86,24.32345999]
[1754362117040,0.71,168.87,168.86,3.29517881]
[1754362117240,0.71,168.87,168.86,9.21724442]
[1754362117415,0.71,168.87,168.86,0.06]
[1754362117738,0.71,168.87,168.84,0.06]
[1754362117739,3.94517881,168.87,168.84,0.06]
[1754362117921,3.26517881,168.87,168.84,0.06]
[1754362118125,0.68,168.86,168.84,0.06]
[1754362125355,0.03,168.87,168.85,3.23517881]
[1754362125657,0.03,168.87,168.86,5.92206561]
[1754362126748,0.03,168.87,168.85,3.23517881]
[1754362126749,0.03,168.87,168.85,10.97593192]
[1754362127644,0.71,168.87,168.85,10.97593192]
[1754362129533,0.68,168.86,168.85,10.97593192]
[1754362130634,0.03,168.87,168.85,10.97593192]
[1754362130836,0.03,168.87,168.86,5.05351558]
[1754362133025,0.03,168.87,168.86,10.97558119]
[1754362134641,0.71,168.87,168.86,10.97558119]
[1754362134841,0.71,168.87,168.85,5.92241634]
[1754362135045,0.71,168.87,168.86,5.05351558]
[1754362136870,0.03,168.87,168.86,10.97558119]
[1754362140155,0.03,168.87,168.86,5.92206561]
[1754362140327,0.71,168.87,168.86,10.97558119]
[1754362141084,0.71,168.87,168.86,5.92206561]
[1754362141267,0.71,168.87,168.86,10.97558119]
[1754362141759,0.71,168.87,168.86,5.92206561]
[1754362144444,0.03,168.87,168.86,5.92206561]
[1754362144775,0.71,168.87,168.86,5.92206561]
[1754362147758,0.71,168.87,168.86,5.98206561]
[1754362150573,0.71,168.87,168.86,9.2163485]
[1754362153957,0.71,168.87,168.86,0.06]
[1754362154368,0.71,168.87,168.86,3.29428289]
[1754362154857,0.03,168.87,168.86,18.40049846]
[1754362155050,0.03,168.87,168.86,18.66049846]
[1754362155251,0.03,168.87,168.86,44.80266003]
[1754362155666,0.03,168.87,168.86,44.54266003]
[1754362156065,0.03,168.87,168.86,50.46472564]
[1754362157495,0.03,168.87,168.86,50.72472564]
[1754362160482,0.03,168.87,168.86,50.46472564]
[1754362161060,0.03,168.88,168.86,50.46472564]
[1754362161061,0.03,168.88,168.87,41.24837714]
[1754362161260,1e-08,168.88,168.87,85.86266003]
[1754362161583,1e-08,168.88,168.87,98.79979159]
[1754362161765,1e-08,168.88,168.87,87.97338203]
[1754362162379,1e-08,168.88,168.87,94.15509695]
[1754362163059,1e-08,168.88,168.87,107.09222851]
[1754362163466,1e-08,168.89,168.87,81.6844]
[1754362163669,1e-08,168.89,168.88,31.53763002]
[1754362164682,1e-08,168.89,168.88,37.4589943]
[1754362165976,1e-08,168.89,168.88,39.8295763]
[1754362166770,1e-08,168.89,168.88,39.97173787]
[1754362166970,1e-08,168.92,168.91,41.10621557]
[1754362167187,1e-08,168.92,168.91,85.46049846]
[1754362167390,1e-08,168.92,168.91,85.72049846]
[1754362167990,1e-08,168.92,168.91,85.46049846]
[1754362168783,1e-08,168.92,168.91,91.38081105]
[1754362170486,1e-08,168.92,168.91,109.15700805]
[1754362171091,1e-08,168.92,168.91,109.55916962]
[1754362174688,1e-08,168.94,168.92,15.24837714]
[1754362174894,1e-08,168.94,168.93,59.58266003]
[1754362175311,1e-08,168.94,168.93,59.84266003]
[1754362175614,1e-08,168.94,168.93,65.7622717]
[1754362176194,1e-08,168.94,168.93,83.5353097]
[1754362181392,1e-08,168.94,168.93,88.15463829]
[1754362182517,0.72,168.98,168.97,15.10621557]
[1754362182696,0.72,168.98,168.97,59.56266003]
[1754362184308,0.72,168.98,168.97,65.48087036]
[1754362185723,0.1,168.99,168.97,65.48087036]
[1754362185901,0.1,168.99,168.98,3.23428289]
[1754362186096,0.82,168.99,168.98,3.23428289]
[1754362186324,0.1,168.99,168.98,9.15214299]
[1754362186826,1e-08,168.99,168.98,24.40052013]
[1754362187039,1e-08,168.99,168.98,24.66052013]
[1754362187601,0.72,169.04,169.02,41.10621557]
[1754362187804,0.72,169.04,169.03,44.33428289]
[1754362188098,0.72,169.04,169.03,59.58266003]
[1754362188426,18.24678055,169.11,169.08,5.91436006]
[1754362188622,18.24678055,169.11,169.08,9.14864295]
[1754362188825,0.72,169.1,169.07,20.14650095]
[1754362189036,0.72,169.1,169.07,26.06109546]
[1754362189349,0.72,169.1,169.07,21.02081008]
[1754362189702,0.72,169.1,169.08,5.04028538]
[1754362189925,0.72,169.09,169.08,5.04028538]
[1754362190244,0.72,169.09,169.08,20.14650095]
[1754362190537,0.72,169.09,169.08,26.06086101]
[1754362190903,18.96678055,169.11,169.09,15.10621557]
[1754362191106,18.24678055,169.11,169.1,5.04028538]
[1754362191336,18.24678055,169.11,169.1,20.14650095]
[1754362191701,18.96678055,169.11,169.1,20.14650095]
[1754362192105,18.96678055,169.11,169.1,26.0601615]
[1754362195000,18.96678055,169.11,169.1,21.01987612]
[1754362195834,24.00706593,169.11,169.08,15.10621557]
[1754362196120,0.72,169.1,169.08,15.10621557]
[1754362196528,0.72,169.1,169.08,21.02029843]
[1754362200309,0.72,169.1,169.08,21.02051782]
[1754362202027,0.72,169.1,169.08,15.10621557]
[1754362202532,0.72,169.1,169.07,31.91459746]
[1754362204922,0.72,169.1,169.08,15.10621557]
[1754362205128,18.24678055,169.11,169.09,5.04028538]
[1754362205314,0.72,169.12,169.09,5.04028538]
[1754362205515,5.04028538,169.13,169.09,5.04028538]
[1754362205716,0.72,169.11,169.08,20.14650095]
[1754362206224,0.72,169.11,169.09,5.91401029]
[1754362207638,17.760412,169.2,169.14,15.10621557]
[1754362207824,0.72,169.21,169.17,5.04028538]
[1754362208012,0.72,169.2,169.18,5.04028538]
[1754362208215,0.72,169.2,169.16,0.14216157]
[1754362208436,0.72,169.19,169.17,5.04028538]
[1754362208620,0.72,169.18,169.17,5.04028538]
[1754362208933,0.72,169.18,169.17,20.14650095]
[1754362209544,0.72,169.18,169.17,26.05771452]
[1754362209752,0.72,169.18,169.17,15.10621557]
[1754362210045,0.72,169.18,169.17,26.0]
[1754362211641,0.72,169.2,169.18,5.91086416]
[1754362211816,5.04028538,169.21,169.18,5.91086416]
[1754362212019,5.04028538,169.22,169.18,10.95114954]
[1754362212216,0.72,169.2,169.18,10.95114954]
[1754362212441,0.72,169.19,169.18,5.91086416]
[1754362212943,0.72,169.19,169.17,36.95139296]
[1754362213140,0.72,169.18,169.17,52.05760853]
[1754362213343,0.72,169.19,169.17,47.01732315]
[1754362213536,5.76028538,169.18,169.12,14.92388932]
[1754362213724,5.04028538,169.18,169.14,0.14216157]
[1754362213923,0.72,169.17,169.14,0.14216157]
[1754362214149,0.72,169.16,169.15,41.10621557]
[1754362214446,0.03,169.18,169.17,0.14216157]
[1754362214622,0.03,169.18,169.17,5.18244695]
[1754362215219,0.03,169.18,169.17,46.28866252]
[1754362215620,0.03,169.18,169.17,52.19987609]
[1754362216246,0.03,169.2,169.19,15.24837714]
[1754362216453,0.03,169.2,169.19,87.62866252]
[1754362216624,0.03,169.2,169.19,87.88866252]
[1754362218050,0.03,169.2,169.19,93.79917732]
[1754362218252,0.72,169.25,169.2,15.10621557]
[1754362218547,0.72,169.26,169.24,20.14650095]
[1754362218724,0.72,169.27,169.24,20.14650095]
[1754362219048,0.72,169.26,169.24,20.14650095]
[1754362219420,0.72,169.25,169.24,20.14650095]
[1754362219742,4.54028538,169.29,169.24,20.14650095]
[1754362220064,0.72,169.26,169.24,26.0550059]
[1754362220363,31.90644155,169.31,169.24,26.0550059]
[1754362220524,5.04028538,169.29,169.24,26.0550059]
[1754362220723,0.72,169.28,169.24,26.0550059]
[1754362220948,5.90644155,169.31,169.24,26.0550059]
[1754362221251,0.72,169.28,169.25,15.10621557]
[1754362221435,41.34,169.32,169.25,5.18244695]
[1754362221637,0.72,169.28,169.25,5.18244695]
[1754362221832,0.72,169.28,169.26,5.04028538]
[1754362222041,0.72,169.28,169.26,5.90807042]
[1754362222244,0.72,169.28,169.26,10.9483558]
[1754362222558,0.72,169.28,169.26,5.90807042]
[1754362223067,5.04028538,169.3,169.26,5.90807042]
[1754362223352,0.72,169.27,169.26,21.01428599]
[1754362223552,0.72,169.29,169.26,26.05457137]
[1754362223844,41.34,169.32,169.27,15.24837714]
[1754362224047,41.34,169.32,169.28,10.94765778]
[1754362224250,0.72,169.34,169.3,5.04028538]
[1754362224628,5.14028538,169.35,169.3,5.04028538]
[1754362224629,0.72,169.33,169.3,5.04028538]
[1754362225256,0.72,169.32,169.3,5.04028538]
[1754362225944,0.72,169.32,169.31,5.90632567]
[1754362226255,0.72,169.34,169.31,5.90632567]
[1754362226729,0.82,169.35,169.32,20.14650095]
[1754362226932,5.76028538,169.34,169.3,5.90655537]
[1754362227144,5.04028538,169.34,169.31,15.10621557]
[1754362227329,0.72,169.33,169.31,15.10621557]
[1754362227525,5.04028538,169.32,169.29,26.0]
[1754362227724,0.72,169.31,169.29,31.90698984]
[1754362228351,0.1,169.35,169.29,31.90698984]
[1754362228352,5.04028538,169.33,169.29,31.90698984]
[1754362228660,5.04028538,169.31,169.29,26.0]
[1754362228950,0.71,169.3,169.28,21.01356155]
[1754362229252,0.71,169.29,169.28,15.10621557]
[1754362229551,5.04028538,169.31,169.28,15.10621557]
[1754362229552,0.71,169.3,169.28,15.10621557]
[1754362230055,0.71,169.29,169.28,21.01344513]
[1754362230434,0.71,169.29,169.26,15.10621557]
[1754362230641,0.71,169.28,169.26,15.10621557]
[1754362231023,0.71,169.27,169.26,15.10621557]
[1754362232853,0.71,169.27,169.25,26.0]
[1754362232854,5.75028538,169.27,169.25,26.0]
[1754362233164,5.75028538,169.26,169.25,26.0]
[1754362234539,5.75028538,169.26,169.24,15.10621557]
[1754362234745,0.71,169.25,169.24,15.10621557]
[1754362235044,0.71,169.31,169.25,15.24837714]
[1754362235243,5.75028538,169.33,169.28,31.04028538]
[1754362235444,0.71,169.32,169.28,26.0]
[1754362235649,5.75028538,169.32,169.28,26.0]
[1754362235856,0.03,169.29,169.28,41.10621557]
[1754362236235,0.03,169.29,169.28,47.01358797]
[1754362240665,0.03,169.29,169.28,47.15574954]
[1754362241249,0.03,169.29,169.28,52.45603492]
[1754362242453,0.03,169.31,169.3,46.28866252]
[1754362242657,0.03,169.31,169.3,87.68866252]
[1754362242848,0.03,169.31,169.3,87.94866252]
[1754362243763,0.03,169.31,169.3,87.68866252]
[1754362244270,0.03,169.31,169.3,93.59533706]
[1754362245060,0.74,169.31,169.3,47.15505168]
[1754362246040,0.1,169.35,169.31,15.10621557]
[1754362246243,0.81,169.35,169.34,6.04744088]
[1754362246642,0.1,169.35,169.34,6.04744088]
[1754362247363,0.81,169.35,169.34,6.04744088]
[1754362248061,0.1,169.35,169.34,6.04744088]
[1754362249880,0.1,169.35,169.34,11.08772626]
[1754362250174,0.1,169.35,169.34,26.19394183]
[1754362250560,0.1,169.35,169.34,26.45394183]
[1754362250769,0.1,169.35,169.34,26.19394183]
[1754362250954,0.1,169.35,169.34,67.55394183]
[1754362251154,1e-08,169.35,169.34,67.81394183]
[1754362252359,1e-08,169.35,169.34,67.55394183]
[1754362261860,1e-08,169.35,169.34,67.81394183]
[1754362262173,1e-08,169.35,169.34,72.85422783]
[1754362262996,5.04028538,169.46,169.37,26.0]
[1754362263158,0.69,169.42,169.41,20.28866252]
[1754362263362,0.69,169.44,169.42,0.14216157]
[1754362263658,0.69,169.44,169.43,15.10621557]
[1754362263983,0.69,169.44,169.43,21.00835804]
[1754362266383,0.69,169.44,169.43,15.10621557]
[1754362267395,5.73028538,169.44,169.41,47.22274508]
[1754362267565,5.73028538,169.44,169.41,5.90274508]
[1754362267757,0.69,169.43,169.41,5.90274508]
[1754362268175,0.69,169.42,169.41,6.04490665]
[1754362268382,47.20015962,169.49,169.41,11.08519203]
[1754362268383,0.69,169.48,169.41,11.08519203]
[1754362268769,5.04028538,169.45,169.41,11.08519203]
[1754362268969,0.69,169.44,169.41,11.08519203]
[1754362269463,0.69,169.44,169.42,0.14216157]
[1754362269774,0.69,169.43,169.42,0.14216157]
[1754362271505,0.69,169.43,169.41,5.90274508]
[1754362271787,0.69,169.42,169.41,5.90274508]
[1754362275990,0.69,169.42,169.41,21.00896065]
[1754362276173,5.73028538,169.44,169.41,21.00896065]
[1754362276579,0.69,169.43,169.41,21.00896065]
[1754362276983,0.69,169.42,169.41,21.00896065]
[1754362278370,0.69,169.43,169.41,21.00896065]
[1754362279377,0.69,169.42,169.41,21.00896065]
[1754362279973,0.72,169.42,169.41,21.00896065]
[1754362280688,0.72,169.42,169.41,5.90274508]
[1754362284181,0.03,169.42,169.41,5.90274508]
[1754362285688,148.2,169.51,169.42,15.10621557]
[1754362285989,5.73028538,169.48,169.44,5.04028538]
[1754362286190,5.73028538,169.47,169.43,41.26]
[1754362286385,5.04028538,169.44,169.41,5.90274508]
[1754362286589,5.73028538,169.43,169.41,5.90274508]
[1754362286795,0.69,169.42,169.38,5.90388475]
[1754362286995,5.04028538,169.41,169.39,15.10621557]